[Event "1st Gujarat GM Open 2018"]
[Site "Ahmedabad"]
[Date "2018.10.07"]
[Round "4"]
[White "Kulkarni, Vinayak"]
[Black "Trisha Kanyamarala"]
[Result "1-0"]
[ECO "D36"]
[WhiteElo "2203"]
[BlackElo "1856"]
[Annotator "NA"]
[PlyCount "155"]
[EventDate "2018.10.05"]
[EventType "swiss"]
[EventCountry "IND"]
[SourceTitle "playchess.com"]
[Source "ChessBase"]
[SourceQuality "1"]
[TimeControl "5400+30"]

1. d4 {[%emt 0:00:00]} d5 {[%emt 0:00:00]} 2. c4 {[%emt 0:00:04]} e6 {[%emt 0:00:14]} 3. Nc3 {[%emt 0:00:13]} Nf6 {[%emt 0:00:28]} 4. cxd5 {[%emt 0:00:09]} exd5 {[%emt 0:00:11]} 5. Bg5 {[%emt 0:00:09]} c6 {[%emt 0:00:32]} 6. Qc2 {[%emt 0:00:20]} Nbd7 {[%emt 0:00:42]} 7. e3 {[%emt 0:00:31]} Be7 {[%emt 0:00:17]} 8. Bd3 {[%emt 0:00:21]} h6 {[%emt 0:00:14]} 9. Bh4 {[%emt 0:01:09]} Nh5 {[%emt 0:00:19]} 10. Bxe7 {[%emt 0:00:34]} Qxe7 {[%emt 0:00:12]} 11. O-O-O {[%emt 0:00:17]} Nb6 {[%emt 0:01:15]} 12. h3 {[%emt 0:00:26]} Be6 {[%emt 0:03:52]} 13. Nf3 {[%emt 0:00:38]} Nf6 {[%emt 0:00:48]} 14. Kb1 {[%emt 0:01:30]} O-O-O {[%emt 0:02:40]} 15. Nd2 {[%emt 0:02:04]} Kb8 {[%emt 0:01:50]} 16. Nb3 {[%emt 0:01:29]} Nfd7 {[%emt 0:07:14]} 17. Rhe1 {[%emt 0:04:03]} Rc8 {[%emt 0:02:50]} 18. f4 {[%emt 0:09:27]} c5 {[%emt 0:12:11]} 19. f5 {[%emt 0:03:49]} c4 {[%emt 0:00:08]} 20. fxe6 {[%emt 0:00:11]} cxd3 {[%emt 0:01:58]} 21. Qxd3 {[%emt 0:00:52]} fxe6 {[%emt 0:02:39]} 22. e4 {[%emt 0:01:58]} Qg5 {[%emt 0:02:11]} 23. g4 {[%emt 0:02:48]} a6 {[%emt 0:04:48]} 24. Nd2 {[%emt 0:08:02]} Rhf8 {[%emt 0:07:17]} 25. Nf3 {[%emt 0:03:40]} Qf6 {[%emt 0:01:18]} 26. Ne5 {[%emt 0:01:01]} Qd8 {[%emt 0:05:19]} 27. exd5 {[%emt 0:09:17]} exd5 {[%emt 0:01:15]} 28. Qg6 {[%emt 0:02:00]} Nxe5 {[%emt 0:06:55]} 29. dxe5 {[%emt 0:01:45]} d4 {[%emt 0:00:11]} 30. e6 {[%emt 0:02:37]} Qe7 {[%emt 0:07:37]} 31. Rxd4 {[%emt 0:03:20]} Nc4 {[%emt 0:00:11]} 32. Qc2 {[%emt 0:05:17]} Qb4 {[%emt 0:01:16]} 33. Ka1 {[%emt 0:02:06]} Ka8 {[%emt 0:02:45]} 34. Qe2 {[%emt 0:05:46]} Qc5 {[%emt 0:04:07]} 35. Rd5 {[%emt 0:03:17]} Qb4 {[%emt 0:00:41]} 36. e7 {[%emt 0:03:42]} Rfe8 {[%emt 0:00:13]} 37. Rd4 {[%emt 0:01:24]} Qc5 {[%emt 0:02:40]} 38. Re4 {[%emt 0:04:36]} Na3 {[%emt 0:02:56]} 39. Qd2 {[%emt 0:03:00]} Nc4 {[%emt 0:00:46]} 40. Qc2 {[%emt 0:01:42]} Rc7 {[%emt 0:03:00]} 41. Qa4 {[%emt 0:03:47]} Rcc8 {[%emt 0:01:53]} 42. Qc2 {[%emt 0:03:11]} Rc7 {[%emt 0:00:07]} 43. Qd3 {[%emt 0:00:46]} Qf2 {[%emt 0:05:54]} 44. R4e2 {[%emt 0:01:52]} Qc5 {[%emt 0:01:34]} 45. Nd5 {[%emt 0:01:08]} Rd7 {[%emt 0:03:23]} 46. Qxc4 {[%emt 0:01:24]} Qxd5 {[%emt 0:00:43]} 47. Qxd5 {[%emt 0:01:46]} Rxd5 {[%emt 0:00:06]} 48. a3 {[%emt 0:00:04]} Rd7 {[%emt 0:00:11]} 49. Ka2 {[%emt 0:01:09]} Kb8 {[%emt 0:00:27]} 50. Kb3 {[%emt 0:00:49]} Kc7 {[%emt 0:00:57]} 51. Kc4 {[%emt 0:00:28]} Kb8 {[%emt 0:01:01]} 52. Re6 {[%emt 0:01:11]} Rc8+ {[%emt 0:00:29]} 53. Kb4 {[%emt 0:00:25]} Re8 {[%emt 0:00:22]} 54. Kc5 {[%emt 0:01:11]} Ka7 {[%emt 0:01:11]} 55. a4 {[%emt 0:00:20]} Rc8+ {[%emt 0:00:39]} 56. Kb4 {[%emt 0:00:10]} Re8 {[%emt 0:00:30]} 57. a5 {[%emt 0:00:31]} Rd4+ {[%emt 0:00:27]} 58. Kc3 {[%emt 0:01:01]} Rd7 {[%emt 0:00:08]} 59. b4 {[%emt 0:00:11]} Rc8+ {[%emt 0:00:34]} 60. Kb3 {[%emt 0:00:10]} Rd3+ {[%emt 0:01:31]} 61. Ka4 {[%emt 0:01:01]} Re8 {[%emt 0:01:41]} 62. Rf1 {[%emt 0:00:31]} Rd7 {[%emt 0:00:27]} 63. Rf7 {[%emt 0:00:13]} g5 {[%emt 0:00:18]} 64. Kb3 {[%emt 0:00:32]} Rc8 {[%emt 0:00:52]} 65. Rf3 {[%emt 0:01:14]} Re8 {[%emt 0:00:14]} 66. Rfe3 {[%emt 0:00:21]} Kb8 {[%emt 0:00:16]} 67. Rxh6 {[%emt 0:00:45]} Rdxe7 {[%emt 0:00:08]} 68. Rxe7 {[%emt 0:00:16]} Rxe7 {[%emt 0:00:04]} 69. Rh5 {[%emt 0:00:31]} Re5 {[%emt 0:00:50]} 70. Kc3 {[%emt 0:00:42]} Kc7 {[%emt 0:00:55]} 71. h4 {[%emt 0:00:23]} Re3+ {[%emt 0:00:15]} 72. Kd4 {[%emt 0:00:12]} Rb3 {[%emt 0:00:14]} 73. Kc4 {[%emt 0:00:06]} Rh3 {[%emt 0:00:14]} 74. hxg5 {[%emt 0:00:38]} Rg3 {[%emt 0:00:06]} 75. Rh4 {[%emt 0:00:31]} Kd6 {[%emt 0:00:07]} 76. g6 {[%emt 0:01:19]} Ke6 {[%emt 0:00:07]} 77. Kc5 {[%emt 0:00:19]} Kf6 {[%emt 0:00:09]} 78. Kb6 {[%emt 0:00:26]} 1-0

[Event "1st Gujarat GM Open 2018"]
[Site "Ahmedabad"]
[Date "2018.10.07"]
[Round "4"]
[White "Dahale, Atul"]
[Black "Sudarshan Bhat"]
[Result "1/2-1/2"]
[ECO "D32"]
[WhiteElo "2171"]
[BlackElo "1840"]
[Annotator "NA"]
[PlyCount "65"]
[EventDate "2018.10.05"]
[EventType "swiss"]
[EventCountry "IND"]
[SourceTitle "playchess.com"]
[Source "ChessBase"]
[SourceQuality "1"]
[TimeControl "5400+30"]

1. d4 {[%emt 0:00:00]} d5 {[%emt 0:00:00]} 2. c4 {[%emt 0:00:18]} e6 {[%emt 0:00:12]} 3. Nc3 {[%emt 0:00:59]} c5 {[%emt 0:00:11]} 4. cxd5 {[%emt 0:01:50]} cxd4 {[%emt 0:00:37]} 5. Qxd4 {[%emt 0:02:02]} Nc6 {[%emt 0:00:14]} 6. Qd1 {[%emt 0:02:42]} exd5 {[%emt 0:00:12]} 7. e3 {[%emt 0:00:46]} Nf6 {[%emt 0:00:16]} 8. Nf3 {[%emt 0:00:07]} Bd6 {[%emt 0:00:15]} 9. Be2 {[%emt 0:00:46]} O-O {[%emt 0:00:09]} 10. O-O {[%emt 0:00:31]} a6 {[%emt 0:00:22]} 11. b3 {[%emt 0:06:06]} Re8 {[%emt 0:00:43]} 12. Bb2 {[%emt 0:00:12]} Bc7 {[%emt 0:02:44]} 13. Qd2 {[%emt 0:12:52]} Qd6 {[%emt 0:18:21]} 14. Rfd1 {[%emt 0:02:00]} Be6 {[%emt 0:01:54]} 15. g3 {[%emt 0:05:49]} Rad8 {[%emt 0:02:00]} 16. Rac1 {[%emt 0:01:42]} Bb6 {[%emt 0:05:50]} 17. Qe1 {[%emt 0:08:01]} Ba7 {[%emt 0:04:10]} 18. Rd2 {[%emt 0:02:37]} Qb4 {[%emt 0:05:36]} 19. Na4 {[%emt 0:11:53]} Ne4 {[%emt 0:02:42]} 20. Rdc2 {[%emt 0:00:17]} Bh3 {[%emt 0:07:15]} 21. Bd4 {[%emt 0:16:58]} Qxe1+ {[%emt 0:07:55]} 22. Rxe1 {[%emt 0:00:15]} Nxd4 {[%emt 0:00:45]} 23. Nxd4 {[%emt 0:02:11]} Bxd4 {[%emt 0:00:28]} 24. exd4 {[%emt 0:00:04]} Ng5 {[%emt 0:05:03]} 25. Rcc1 {[%emt 0:04:44]} Re4 {[%emt 0:07:02]} 26. Nc5 {[%emt 0:02:06]} Rxd4 {[%emt 0:03:43]} 27. f4 {[%emt 0:00:40]} Ne4 {[%emt 0:01:28]} 28. Nxb7 {[%emt 0:01:00]} Rb8 {[%emt 0:01:17]} 29. Bxa6 {[%emt 0:11:10]} Rd2 {[%emt 0:02:27]} 30. Bf1 {[%emt 0:00:10]} Bxf1 {[%emt 0:03:10]} 31. Rxf1 {[%emt 0:00:02]} Rxa2 {[%emt 0:00:56]} 32. Nc5 {[%emt 0:01:25]} Nxc5 33. Rcd1 1/2-1/2

[Event "1st Gujarat GM Open 2018"]
[Site "Ahmedabad"]
[Date "2018.10.07"]
[Round "4"]
[White "Ramnathan, Balasubramaniam"]
[Black "Sidhant, Mohapatra"]
[Result "0-1"]
[ECO "A06"]
[WhiteElo "2142"]
[BlackElo "2341"]
[Annotator "NA"]
[PlyCount "68"]
[EventDate "2018.10.05"]
[EventType "swiss"]
[EventCountry "IND"]
[SourceTitle "playchess.com"]
[Source "ChessBase"]
[SourceQuality "1"]
[TimeControl "5400+30"]

1. Nf3 {[%emt 0:00:00]} d5 {[%emt 0:00:19]} 2. b3 {[%emt 0:00:01]} Bf5 {[%emt 0:00:21]} 3. Bb2 {[%emt 0:00:18]} e6 {[%emt 0:00:06]} 4. e3 {[%emt 0:00:40]} Nf6 {[%emt 0:00:07]} 5. Be2 {[%emt 0:01:22]} h6 {[%emt 0:00:09]} 6. O-O {[%emt 0:00:58]} Nbd7 {[%emt 0:00:58]} 7. d4 {[%emt 0:00:08]} Bd6 {[%emt 0:02:19]} 8. c4 {[%emt 0:00:08]} c6 {[%emt 0:00:08]} 9. Nc3 {[%emt 0:00:10]} O-O {[%emt 0:00:27]} 10. Rc1 {[%emt 0:03:56]} Re8 {[%emt 0:02:19]} 11. Bd3 {[%emt 0:03:28]} Bxd3 {[%emt 0:11:17]} 12. Qxd3 {[%emt 0:00:07]} e5 {[%emt 0:02:17]} 13. dxe5 {[%emt 0:03:17]} Nxe5 {[%emt 0:00:13]} 14. Nxe5 {[%emt 0:01:35]} Bxe5 {[%emt 0:00:32]} 15. g3 {[%emt 0:08:34]} dxc4 {[%emt 0:01:36]} 16. Qxc4 {[%emt 0:00:07]} Qd7 {[%emt 0:10:47]} 17. Rfd1 {[%emt 0:02:01]} Qh3 {[%emt 0:00:09]} 18. Qf1 {[%emt 0:00:15]} Qh5 {[%emt 0:00:08]} 19. Rd2 {[%emt 0:15:27]} Rac8 {[%emt 0:05:31]} 20. Rd3 Rcd8 21. Rxd8 {[%emt 0:03:15]} Rxd8 {[%emt 0:00:48]} 22. Rd1 {[%emt 0:00:59]} Re8 {[%emt 0:02:14]} 23. Rd3 {[%emt 0:09:08]} Bxc3 {[%emt 0:01:30]} 24. Bxc3 {[%emt 0:00:11]} Ne4 {[%emt 0:00:04]} 25. Bb2 {[%emt 0:20:45]} Qf5 {[%emt 0:03:27]} 26. f4 {[%emt 0:12:34]} Nc5 {[%emt 0:01:22]} 27. Rd1 {[%emt 0:01:47]} Rxe3 {[%emt 0:01:29]} 28. Rd8+ {[%emt 0:01:43]} Kh7 {[%emt 0:00:28]} 29. Bd4 {[%emt 0:02:00]} Rd3 {[%emt 0:01:10]} 30. Rd6 {[%emt 0:00:30]} Rd2 {[%emt 0:04:30]} 31. b4 {[%emt 0:02:55]} Qh5 {[%emt 0:01:42]} 32. h3 {[%emt 0:01:55]} Ne4 {[%emt 0:00:39]} 33. g4 {[%emt 0:01:06]} Qh4 {[%emt 0:00:05]} 34. Rd7 {[%emt 0:01:04]} Qg3+ {[%emt 0:00:06]} 0-1

[Event "1st Gujarat GM Open 2018"]
[Site "Ahmedabad"]
[Date "2018.10.07"]
[Round "4"]
[White "Singh, D.P."]
[Black "Tukhaev, Adam"]
[Result "1/2-1/2"]
[ECO "B06"]
[WhiteElo "2132"]
[BlackElo "2556"]
[Annotator "ChessBase"]
[PlyCount "126"]
[EventDate "2018.10.05"]
[EventType "swiss"]
[EventCountry "IND"]
[SourceTitle "playchess.com"]
[Source "ChessBase"]
[SourceQuality "1"]
[TimeControl "5400+30"]

1. d4 {[%emt 0:03:11]} g6 {[%emt 0:00:00]} 2. e4 {[%emt 0:01:51]} Bg7 {[%emt 0:00:27]} 3. h4 {[%emt 0:02:29]} h6 {[%emt 0:01:02]} 4. Nc3 {[%emt 0:02:24]} d6 {[%emt 0:00:18]} 5. Be3 {[%emt 0:03:25]} a6 {[%emt 0:00:05]} 6. a4 {[%emt 0:01:51]} Nf6 {[%emt 0:04:54]} 7. f3 {[%emt 0:04:25]} b6 {[%emt 0:01:26]} 8. Nh3 {[%emt 0:07:38]} Nh5 {[%emt 0:13:07]} 9. Ne2 {[%emt 0:00:54]} Nd7 {[%emt 0:09:55]} 10. c3 {[%emt 0:04:10]} Bb7 {[%emt 0:08:18]} 11. g4 {[%emt 0:03:13]} Nhf6 {[%emt 0:00:04]} 12. Ng3 {[%emt 0:00:48]} c5 {[%emt 0:04:24]} 13. g5 {[%emt 0:13:11]} hxg5 {[%emt 0:00:58]} 14. Nxg5 {[%emt 0:01:02]} e6 {[%emt 0:02:38]} 15. Kf2 {[%emt 0:02:36]} Qe7 {[%emt 0:01:30]} 16. Bd3 {[%emt 0:04:33]} Nh5 {[%emt 0:01:11]} 17. Nxh5 {[%emt 0:08:04]} Rxh5 {[%emt 0:00:08]} 18. Qb3 {[%emt 0:08:21]} Rc8 {[%emt 0:26:46]} 19. Rag1 {[%emt 0:06:09]} Kd8 {[%emt 0:09:26]} 20. dxc5 {[%emt 0:04:42]} dxc5 {[%emt 0:01:30]} 21. Bc4 {[%emt 0:02:31]} Kc7 {[%emt 0:01:58]} 22. Rd1 {[%emt 0:01:35]} Ne5 {[%emt 0:07:46]} 23. Bf4 {[%emt 0:03:58]} Rch8 {[%emt 0:00:41]} 24. Bg3 {[%emt 0:03:22]} Bc6 {[%emt 0:01:40]} 25. Bxa6 {[%emt 0:01:55]} Rxg5 {[%emt 0:01:06]} 26. hxg5 {[%emt 0:00:46]} Rxh1 {[%emt 0:00:02]} 27. Rxh1 {[%emt 0:00:22]} Qxg5 {[%emt 0:00:02]} 28. Qd1 {[%emt 0:01:28]} Qe7 {[%emt 0:01:48]} 29. Rh7 {[%emt 0:01:31]} Bf6 {[%emt 0:00:48]} 30. f4 {[%emt 0:01:13]} Nd7 {[%emt 0:00:02]} 31. e5 {[%emt 0:00:34]} c4 {[%emt 0:00:39]} 32. Qd6+ {[%emt 0:01:13]} Qxd6 {[%emt 0:00:13]} 33. exd6+ {[%emt 0:00:05]} Kxd6 {[%emt 0:00:02]} 34. f5+ {[%emt 0:00:45]} Be5 {[%emt 0:01:07]} 35. fxg6 {[%emt 0:00:19]} fxg6 {[%emt 0:00:02]} 36. Bxc4 {[%emt 0:00:20]} Bxg3+ {[%emt 0:00:19]} 37. Kxg3 {[%emt 0:00:09]} Bxa4 {[%emt 0:00:08]} 38. Bd3 {[%emt 0:00:39]} Ne5 {[%emt 0:00:02]} 39. Be4 {[%emt 0:00:18]} Bc6 {[%emt 0:01:03]} 40. Bxc6 {[%emt 0:00:33]} Kxc6 {[%emt 0:00:03]} 41. b3 {[%emt 0:00:41]} Nd7 42. Kf3 {[%emt 0:01:06]} Nc5 {[%emt 0:02:08]} 43. b4 {[%emt 0:00:17]} Na4 {[%emt 0:00:03]} 44. Rh8 {[%emt 0:00:42]} Kd5 {[%emt 0:01:33]} 45. Rc8 {[%emt 0:00:26]} b5 {[%emt 0:00:09]} 46. Ke3 {[%emt 0:00:06]} e5 {[%emt 0:00:17]} 47. Kd2 {[%emt 0:00:27]} g5 {[%emt 0:00:34]} 48. Rd8+ {[%emt 0:01:04]} Ke4 {[%emt 0:00:54]} 49. Rb8 {[%emt 0:00:23]} g4 {[%emt 0:00:03]} 50. Rxb5 {[%emt 0:00:26]} g3 {[%emt 0:00:02]} 51. Rb8 {[%emt 0:00:20]} g2 {[%emt 0:00:51]} 52. Rg8 {[%emt 0:00:19]} Kf3 {[%emt 0:00:02]} 53. c4 {[%emt 0:00:37]} e4 {[%emt 0:01:27]} 54. Rf8+ {[%emt 0:00:31]} Kg3 {[%emt 0:00:04]} 55. Rg8+ {[%emt 0:00:53]} Kf2 {[%emt 0:00:13]} 56. Rf8+ {[%emt 0:00:07]} Kg3 {[%emt 0:00:04]} 57. Rg8+ {[%emt 0:00:55]} Kf2 {[%emt 0:00:03]} 58. Rf8+ {[%emt 0:00:32]} Kg3 {[%emt 0:00:04]} 59. Rg8+ {[%emt 0:00:32]} Kf2 {[%emt 0:00:04]} 60. Rxg2+ {[%emt 0:00:29]} Kxg2 {[%emt 0:00:03]} 61. Ke3 {[%emt 0:00:15]} Nb2 {[%emt 0:00:42]} 62. c5 {[%emt 0:00:43]} Nd3 {[%emt 0:00:03]} 63. Kxe4 {[%emt 0:00:25]} Nxb4 {[%emt 0:00:04]} 1/2-1/2

[Event "1st Gujarat GM Open 2018"]
[Site "Ahmedabad"]
[Date "2018.10.07"]
[Round "4"]
[White "Prasannaa.s"]
[Black "Rathanvel, V S"]
[Result "1/2-1/2"]
[ECO "A05"]
[WhiteElo "2124"]
[BlackElo "2341"]
[Annotator "NA"]
[PlyCount "113"]
[EventDate "2018.10.05"]
[EventType "swiss"]
[EventCountry "IND"]
[SourceTitle "playchess.com"]
[Source "ChessBase"]
[SourceQuality "1"]
[TimeControl "5400+30"]

1. Nf3 {[%emt 0:00:00]} Nf6 {[%emt 0:00:00]} 2. c4 {[%emt 0:00:00]} Nc6 {[%emt 0:00:09]} 3. d4 {[%emt 0:01:17]} e6 {[%emt 0:00:07]} 4. Nc3 {[%emt 0:00:35]} Bb4 {[%emt 0:00:10]} 5. Bd2 {[%emt 0:02:17]} Qe7 {[%emt 0:01:18]} 6. d5 {[%emt 0:16:14]} Nb8 {[%emt 0:09:03]} 7. Qc2 {[%emt 0:08:13]} O-O {[%emt 0:01:11]} 8. O-O-O {[%emt 0:02:30]} d6 {[%emt 0:09:12]} 9. e4 {[%emt 0:02:33]} e5 {[%emt 0:13:01]} 10. h3 {[%emt 0:01:37]} a6 {[%emt 0:02:45]} 11. a3 {[%emt 0:03:09]} Bc5 {[%emt 0:00:51]} 12. Bg5 {[%emt 0:02:19]} a5 {[%emt 0:03:18]} 13. Ne1 {[%emt 0:02:01]} c6 {[%emt 0:02:16]} 14. Nd3 {[%emt 0:00:19]} Bd4 {[%emt 0:11:23]} 15. Kb1 {[%emt 0:03:24]} h6 {[%emt 0:02:07]} 16. Bxf6 {[%emt 0:01:22]} Qxf6 {[%emt 0:00:14]} 17. Be2 {[%emt 0:00:06]} Qg6 {[%emt 0:05:58]} 18. Bf3 {[%emt 0:00:04]} f5 {[%emt 0:16:14]} 19. Rhe1 {[%emt 0:00:53]} Na6 {[%emt 0:05:18]} 20. Rd2 {[%emt 0:06:00]} Bd7 {[%emt 0:03:03]} 21. exf5 {[%emt 0:08:37]} Bxf5 {[%emt 0:00:08]} 22. Be4 {[%emt 0:00:29]} Bxc3 {[%emt 0:01:55]} 23. Bxf5 {[%emt 0:01:21]} Qxf5 {[%emt 0:02:16]} 24. bxc3 {[%emt 0:00:42]} cxd5 {[%emt 0:00:33]} 25. cxd5 {[%emt 0:00:12]} Rac8 {[%emt 0:02:36]} 26. Nb2 {[%emt 0:00:58]} Rxc3 {[%emt 0:00:59]} 27. Qxf5 {[%emt 0:00:12]} Rxf5 {[%emt 0:00:04]} 28. Re3 {[%emt 0:01:16]} Rxf2 {[%emt 0:00:58]} 29. Rxf2 {[%emt 0:00:39]} Rxe3 {[%emt 0:00:04]} 30. Nc4 {[%emt 0:00:07]} Rd3 {[%emt 0:03:28]} 31. Nxd6 {[%emt 0:00:05]} Nc5 {[%emt 0:01:46]} 32. Nf5 {[%emt 0:00:02]} e4 {[%emt 0:00:43]} 33. d6 {[%emt 0:02:36]} g6 {[%emt 0:00:57]} 34. Nxh6+ {[%emt 0:00:56]} Kg7 {[%emt 0:00:01]} 35. Ng4 {[%emt 0:00:09]} Rxd6 {[%emt 0:00:08]} 36. Ne5 {[%emt 0:00:48]} Re6 {[%emt 0:01:32]} 37. Nc4 {[%emt 0:00:07]} b5 {[%emt 0:00:52]} 38. Ne3 {[%emt 0:01:55]} Nd3 {[%emt 0:01:26]} 39. Re2 {[%emt 0:01:25]} Kf6 {[%emt 0:00:52]} 40. Nd5+ {[%emt 0:00:26]} Ke5 {[%emt 0:00:30]} 41. Nc3 {[%emt 0:00:09]} Kd4 {[%emt 0:00:22]} 42. Nxb5+ {[%emt 0:00:08]} Kc4 {[%emt 0:00:09]} 43. a4 {[%emt 0:00:05]} e3 {[%emt 0:00:55]} 44. Na3+ {[%emt 0:00:04]} Kc3 {[%emt 0:00:20]} 45. Nb5+ {[%emt 0:00:22]} Kb4 {[%emt 0:00:29]} 46. Nd4 {[%emt 0:00:04]} Re4 {[%emt 0:00:36]} 47. Nc2+ {[%emt 0:00:07]} Kxa4 {[%emt 0:00:14]} 48. Rxe3 {[%emt 0:00:15]} Rxe3 {[%emt 0:00:07]} 49. Nxe3 {[%emt 0:00:11]} Kb3 {[%emt 0:00:08]} 50. h4 {[%emt 0:01:26]} a4 {[%emt 0:00:29]} 51. g4 {[%emt 0:00:42]} Nf4 {[%emt 0:00:12]} 52. Nf1 {[%emt 0:00:43]} a3 {[%emt 0:00:36]} 53. Nd2+ {[%emt 0:00:27]} Kc3 {[%emt 0:00:10]} 54. Nf3 {[%emt 0:00:04]} Kd3 {[%emt 0:01:05]} 55. Ka2 {[%emt 0:00:06]} Ke3 {[%emt 0:00:30]} 56. Ne5 {[%emt 0:00:06]} Ke4 {[%emt 0:00:11]} 57. Nxg6 {[%emt 0:00:04] Ke5} 1/2-1/2

[Event "1st Gujarat GM Open 2018"]
[Site "Ahmedabad"]
[Date "2018.10.07"]
[Round "4"]
[White "Anadkat Kartavya"]
[Black "Mohammad Minhaz Uddin"]
[Result "0-1"]
[ECO "C42"]
[WhiteElo "2109"]
[BlackElo "2328"]
[Annotator "NA"]
[PlyCount "62"]
[EventDate "2018.10.05"]
[EventType "swiss"]
[EventCountry "IND"]
[SourceTitle "playchess.com"]
[Source "ChessBase"]
[SourceQuality "1"]
[TimeControl "5400+30"]

1. e4 {[%emt 0:00:00]} e5 {[%emt 0:00:00]} 2. Nf3 {[%emt 0:00:00]} Nf6 {[%emt 0:00:00]} 3. Nxe5 {[%emt 0:00:43]} d6 {[%emt 0:00:00]} 4. Nf3 {[%emt 0:00:23]} Nxe4 {[%emt 0:00:03]} 5. Nc3 {[%emt 0:00:33]} Nxc3 {[%emt 0:00:06]} 6. dxc3 {[%emt 0:00:04]} Be7 {[%emt 0:00:11]} 7. Be3 {[%emt 0:00:05]} Nc6 {[%emt 0:00:06]} 8. Qd2 {[%emt 0:00:32]} Be6 {[%emt 0:01:26]} 9. O-O-O {[%emt 0:02:32]} Qd7 {[%emt 0:00:12]} 10. Kb1 {[%emt 0:04:28]} O-O-O {[%emt 0:04:21]} 11. Bb5 {[%emt 0:07:37]} a6 {[%emt 0:00:22]} 12. Ba4 {[%emt 0:02:23]} b5 {[%emt 0:00:10]} 13. Bb3 {[%emt 0:00:05]} d5 {[%emt 0:01:28]} 14. a4 {[%emt 0:26:53]} Na5 {[%emt 0:12:17]} 15. axb5 {[%emt 0:15:59]} axb5 {[%emt 0:06:52]} 16. Ba2 {[%emt 0:03:47]} Kb7 {[%emt 0:07:58]} 17. Bf4 $17 {[%emt 0:08:21]} (17. Rhe1 $11 {remains equal.}) 17... Nc4 {[%emt 0:02:22]} 18. Qe2 {[%emt 0:01:37]} Bf6 {[%emt 0:07:10]} 19. Nd4 {[%emt 0:04:02]} Rhe8 {[%emt 0:11:42]} 20. Qd3 {[%emt 0:01:29]} Bxd4 {[%emt 0:02:47]} 21. Qxd4 {[%emt 0:00:35]} Ra8 {[%emt 0:02:50]} 22. Qc5 {[%emt 0:03:37]} Ra6 {[%emt 0:02:59]} 23. Bxc4 {[%emt 0:03:08]} bxc4 {[%emt 0:01:43]} 24. Kc1 {[%emt 0:03:16]} Rea8 {[%emt 0:00:07]} 25. Kd2 {[%emt 0:00:30]} Bf5 {[%emt 0:03:44]} 26. Rhe1 {[%emt 0:01:07]} Ra5 {[%emt 0:02:23]} 27. Qe7 {[%emt 0:00:53]} Kc6 {[%emt 0:03:16]} 28. Qh4 {[%emt 0:01:48]} Bxc2 {[%emt 0:06:58]} 29. Rc1 {[%emt 0:03:38]} Qf5 {[%emt 0:00:12]} 30. Re3 {[%emt 0:00:38]} Ba4 {[%emt 0:01:48]} 31. g4 {[%emt 0:03:42]} Qxf4 {[%emt 0:00:29]} 0-1

[Event "1st Gujarat GM Open 2018"]
[Site "Ahmedabad"]
[Date "2018.10.07"]
[Round "4"]
[White "Kasparova, Tatiana"]
[Black "Wagh Suyog"]
[Result "0-1"]
[ECO "C41"]
[WhiteElo "2102"]
[BlackElo "2312"]
[Annotator "NA"]
[PlyCount "96"]
[EventDate "2018.10.05"]
[EventType "swiss"]
[EventCountry "IND"]
[SourceTitle "playchess.com"]
[Source "ChessBase"]
[SourceQuality "1"]
[TimeControl "5400+30"]

1. e4 {[%emt 0:00:00]} e5 {[%emt 0:00:00]} 2. Nf3 {[%emt 0:00:00]} d6 {[%emt 0:00:00]} 3. d4 {[%emt 0:00:27]} exd4 {[%emt 0:00:00]} 4. Nxd4 {[%emt 0:00:02]} Nf6 {[%emt 0:00:12]} 5. Nc3 {[%emt 0:00:58]} Be7 {[%emt 0:00:56]} 6. Bd3 {[%emt 0:02:21]} O-O {[%emt 0:02:00]} 7. O-O {[%emt 0:00:14]} Re8 {[%emt 0:00:41]} 8. Nd5 {[%emt 0:06:08]} Nxd5 {[%emt 0:04:39]} 9. exd5 {[%emt 0:00:38]} Bf6 {[%emt 0:01:47]} 10. c3 {[%emt 0:10:40]} Nd7 {[%emt 0:03:21]} 11. Bc2 {[%emt 0:05:36]} a5 {[%emt 0:22:28]} 12. Be3 {[%emt 0:09:52]} Nc5 {[%emt 0:01:51]} 13. Qf3 {[%emt 0:03:17]} g6 {[%emt 0:03:54]} 14. Rfe1 {[%emt 0:04:29]} Bd7 {[%emt 0:01:33]} 15. Rad1 {[%emt 0:03:35]} Bg5 {[%emt 0:09:56]} 16. Qg3 {[%emt 0:10:18]} Bxe3 {[%emt 0:00:44]} 17. Rxe3 {[%emt 0:00:04]} Rxe3 {[%emt 0:00:10]} 18. Qxe3 {[%emt 0:04:28]} Qf6 {[%emt 0:01:53]} 19. h3 {[%emt 0:09:09]} Re8 {[%emt 0:02:04]} 20. Qd2 {[%emt 0:00:07]} Re5 {[%emt 0:04:54]} 21. Nf3 {[%emt 0:00:40]} Re7 {[%emt 0:00:37]} 22. Re1 {[%emt 0:02:14]} Rxe1+ {[%emt 0:00:09]} 23. Nxe1 {[%emt 0:00:17]} Bf5 {[%emt 0:01:25]} 24. f3 {[%emt 0:06:48]} h5 {[%emt 0:01:49]} 25. b3 {[%emt 0:04:31]} Bxc2 {[%emt 0:06:31]} 26. Nxc2 {[%emt 0:00:12]} Qf5 {[%emt 0:00:07]} 27. c4 {[%emt 0:03:34]} b6 {[%emt 0:09:12]} 28. Nd4 {[%emt 0:00:53]} Qb1+ {[%emt 0:03:09]} 29. Kh2 {[%emt 0:00:25]} a4 {[%emt 0:00:59]} 30. bxa4 {[%emt 0:01:58]} Qf1 {[%emt 0:01:43]} 31. Qc2 {[%emt 0:04:30]} h4 {[%emt 0:00:28]} 32. Nf5 {[%emt 0:01:55]} gxf5 {[%emt 0:01:17]} 33. Qxf5 {[%emt 0:00:01]} Qe1 {[%emt 0:01:46]} 34. Qg5+ {[%emt 0:00:11]} Kf8 {[%emt 0:01:30]} 35. Qd8+ {[%emt 0:00:34]} Qe8 {[%emt 0:00:07]} 36. Qxh4 {[%emt 0:00:27]} Nxa4 {[%emt 0:04:16]} 37. Qh6+ {[%emt 0:00:39]} Ke7 {[%emt 0:00:07]} 38. h4 {[%emt 0:00:47]} Qg8 {[%emt 0:00:35]} 39. h5 {[%emt 0:00:57]} Nc5 {[%emt 0:00:07]} 40. Qe3+ {[%emt 0:01:39]} Kf8 {[%emt 0:00:08]} 41. g4 {[%emt 0:00:55]} Qg7 {[%emt 0:00:13]} 42. Kh3 {[%emt 0:01:03]} Qf6 {[%emt 0:00:10]} 43. f4 {[%emt 0:00:45]} Qa1 {[%emt 0:02:19]} 44. Kh4 {[%emt 0:00:59]} f6 {[%emt 0:05:19]} 45. g5 {[%emt 0:00:56]} f5 {[%emt 0:01:34]} 46. g6 {[%emt 0:01:27]} Ne4 {[%emt 0:00:18]} 47. Qf3 {[%emt 0:00:37]} Qg1 {[%emt 0:00:24]} 48. a4 {[%emt 0:00:25]} Qh2+ {[%emt 0:00:21]} 0-1